Cogmind - Beta 17 @@@ ROGUE MODE // 2026.06.30 @ 15:28:26 Player: mbomb Result: Destroyed by 9X-5R4(R) with Subdweller Laser Performance ------------- Evolutions (0) 0 Regions Visited (3) 600 Robots Destroyed (36) 180 Value Destroyed (487) 487 Prototype IDs (0) 0 Alien Tech Used (0) 0 Bonus (-70) -70 TOTAL SCORE: 1197 Bonus ------- Follower Combat Kills 56 Friendly Fire -126 Cogmind --------- Core Integrity 0/250 Matter 300/300 Energy 160/160 System Corruption 0% Temperature Cool (6) Movement Core (300) Ox5 Location -10/Subcaves Parts ------- > --- POWER (1) -------- Light Nuclear Core > --- PROPULSION (2) --- (None) > --- UTILITY (2) ------ Medium Storage Unit Sensor Array > --- WEAPON (2) ------- Light Assault Rifle Light Assault Rifle > --- INVENTORY (10) --- Aluminum Leg Aluminum Leg Aluminum Leg Medium Storage Unit Large Storage Unit Medium Matter Pod (100) Targeting Computer Hardened Light Armor Plating Assault Rifle Light Assault Rifle Peak State ------------ > --- POWER ------------ Light Nuclear Core > --- PROPULSION ------- Aluminum Leg Aluminum Leg > --- UTILITY ---------- Medium Storage Unit Sensor Array > --- WEAPON ----------- Light Assault Rifle Light Assault Rifle > --- INVENTORY -------- Aluminum Leg Aluminum Leg Aluminum Leg Medium Storage Unit Large Storage Unit Medium Matter Pod Targeting Computer Hardened Light Armor Plating Assault Rifle Light Assault Rifle [Rating: 10] Favorites ----------- Power Ion Engine Engine Ion Engine Power Core Light Nuclear Core Propulsion Aluminum Leg Leg Aluminum Leg Utility Medium Storage Unit Device Sensor Array Storage Medium Storage Unit Processor Visual Processing Unit Weapon Assault Rifle Ballistic Gun Assault Rifle Launcher Grenade Launcher Build | -11 -10 -10 -10 ------- Run | Yrd Mat Min Sub Slots Evolved . | . . . . Power . | . . . . Propulsion . | . . . . Utility . | . . . . Weapon . | . . . . Parts Attached 21 | 6 12 3 . Power 5 | 1 3 1 . Engine 4 | 1 3 . . Core 1 | . . 1 . Reactor . | . . . . Propulsion 5 | 2 3 . . Treads . | . . . . Leg 5 | 2 3 . . Wheel . | . . . . Hover . | . . . . Flight . | . . . . Utility 4 | 1 3 . . Device 1 | . 1 . . Storage 2 | 1 1 . . Processor 1 | . 1 . . Hackware . | . . . . Protection . | . . . . Artifact . | . . . . Weapon 7 | 2 3 2 . Energy Gun . | . . . . Energy Cannon . | . . . . Ballistic Gun 6 | 2 2 2 . Ballistic Cannon . | . . . . Launcher 1 | . 1 . . Special Weapon . | . . . . Impact Weapon . | . . . . Slashing Weapon . | . . . . Piercing Weapon . | . . . . Special Melee Weapon . | . . . . Unidentified Prototypes . | . . . . Parts Lost 2 | . . . 2 Power . | . . . . Propulsion 2 | . . . 2 Utility . | . . . . Weapon . | . . . . Highest Loss Streak 2 | . . . 2 To Critical Strikes . | . . . . Average Backups 7 | . 6 9 10 Power . | . . . . Propulsion 2 | . 2 3 3 Utility 3 | . 3 5 5 Weapon 1 | . 1 1 2 Tool/Special . | . . . . Unused Backups 14 | . 3 1 10 Power . | . . . . Propulsion 4 | . 1 . 3 Utility 6 | . 1 . 5 Weapon 4 | . 1 1 2 Tool/Special . | . . . . Average Slot Usage (%) 98 | . 97 100 97 Engine 11 | . 14 7 . Core 2 | . . 6 14 Leg 27 | . 28 28 25 Device 9 | . 5 14 14 Storage 14 | . 14 14 14 Processor 3 | . 5 . . Ballistic Gun 27 | . 27 28 28 Peak Build Rating 10 | 6 8 10 10 Average Rating 7 | 3 7 8 9 On Entrance 6 | . 6 8 10 Avg Prop Armor Cover (%) . | . . . . Naked Turns . | . . . . Heaviest Build 20 | 13 20 20 18 Greatest Support 20 | 20 20 20 20 Greatest Overweight (x) 5 | . . . 5 Average Overweight (x) . | . . . . Largest Inventory Capacity 10 | 8 10 10 10 Average Capacity 9 | 5 8 10 10 Most Carried 10 | 2 10 10 10 Average Carried 7 | . 6 9 10 Final Capacity 10 | 8 10 10 10 Final Carried 10 | . 9 10 10 Class Distribution -------------------- 65% | Mutant 34% | Scavenger-Mutant Dominant Class ---------------- Mutant | -10/Materials Scavenger-Mutant | -10/Mines Scavenger-Mutant | -10/Subcaves Resources | -11 -10 -10 -10 ----------- Run | Yrd Mat Min Sub Matter Collected 1065 | 233 690 136 6 Remotely . | . . . . Salvage Created 1029 | 93 746 190 . Parts 76 | 3 55 18 . Haulers Intercepted 2 | . 2 . . Recyclers Shooed 5 | 1 3 1 . Parts Field Recycled . | . . . . Retrieved Matter . | . . . . Parts Self-Destructed 4 | . . . 4 Prevented . | . . . . Parts Restored . | . . . . Kills | -11 -10 -10 -10 ------- Run | Yrd Mat Min Sub Combat Hostiles Destroyed 21 | . 14 7 . Guns 17 | . 10 7 . AOE 4 | . 4 . . Classes Destroyed 7 | 2 5 . . Worker 2 | . 2 . . Tunneler 4 | 1 3 . . Hauler 2 | . 2 . . Recycler 5 | 1 4 . . Watcher 1 | . 1 . . Swarmer 15 | . 9 6 . Grunt 6 | . 5 1 . Thug 1 | . . 1 . Best Kill Streak 5 | 2 5 3 . Combat Bots Only 5 | . 5 3 . Max Kills in Single Turn 2 | 1 2 2 . Gunslinging 1 | . . 1 . Exploded 2 | . 2 . . Melee . | . . . . Uniques/NPCs Destroyed . | . . . . Combat | -11 -10 -10 -10 -------- Run | Yrd Mat Min Sub Hostile Shots Fired 97 | . 66 18 13 Missed 21 | . 14 4 3 Hits 76 | . 52 14 10 Projectile 76 | . 52 14 10 Critical Strikes 2 | . 1 1 . Damage Taken 942 | . 604 135 203 Core 252 | . 170 26 56 Absorbed by Shields . | . . . . Core Remaining (%) 100 | 100 . . . Volleys Fired 108 | 3 67 32 6 Largest 2 | 2 2 2 2 Hottest 50 | 40 50 40 40 Shots Fired 211 | 6 129 64 12 Gun 205 | 6 123 64 12 Cannon . | . . . . Launcher 6 | . 6 . . Special . | . . . . Kinetic 205 | 6 123 64 12 Thermal . | . . . . Explosive 6 | . 6 . . Electromagnetic . | . . . . Robot Hit Streak 7 | 5 7 6 4 Robot Miss Streak 10 | . 10 5 2 Penetration Max . | . . . . Secondary Targets 4 | . 2 2 . Max Gunslinging Chain 1 | . 1 1 . Shots Hit Robots 110 | 5 68 30 7 Core Hits 55 | 3 36 13 3 Critical Kills . | . . . . Critical Parts Destroyed . | . . . . Critical Strikes . | . . . . Melee Attacks . | . . . . Impact . | . . . . Slashing . | . . . . Piercing . | . . . . Sneak Attacks . | . . . . Combat Hostiles . | . . . . Follow-up Attacks . | . . . . Damage Inflicted 1618 | 49 1215 291 63 Guns 1216 | 49 813 291 63 Cannons . | . . . . Explosions 402 | . 402 . . Melee . | . . . . Ramming . | . . . . Kinetic 1216 | 49 813 291 63 Thermal 90 | . 90 . . Explosive 312 | . 312 . . Electromagnetic . | . . . . Impact . | . . . . Slashing . | . . . . Piercing . | . . . . Highest Corruption . | . . . . Average Corruption . | . . . . Corruption Purged . | . . . . Corruption Blocked . | . . . . Overload Shots . | . . . . Overflow Damage 4 | . 4 . . Projectiles . | . . . . Explosions 4 | . 4 . . Melee . | . . . . Knockbacks . | . . . . Impact . | . . . . Kinetic . | . . . . Secondary . | . . . . Self-Inflicted Damage 140 | . 140 . . Shots 2 | . 2 . . Rammed . | . . . . Targets Rammed . | . . . . Kicked . | . . . . Crushed . | . . . . Highest Temperature 19 | . 19 8 . Average Temperature 5 | . 10 4 . Received Heat Transfer 114 | . 78 30 6 Siege Activations . | . . . . Martial Activations . | . . . . Shielding Activations . | . . . . Robots Disrupted . | . . . . Combat Hostiles . | . . . . Robots Corrupted . | . . . . Combat Hostiles . | . . . . Parts Fried . | . . . . Impact Corruptions . | . . . . Robots Melted . | . . . . Combat Hostiles . | . . . . Parts Melted . | . . . . Heat Transferred 100 | . 100 . . Parts Sabotaged . | . . . . Parts Stolen . | . . . . Parts Stripped . | . . . . Power Chain Reactions . | . . . . Alert | -11 -10 -10 -10 ------- Run | Yrd Mat Min Sub Maximum Alert Level 1 | . 1 . . Low Security (%) 90 | 100 82 100 . Level 1 9 | . 17 . . Level 2 . | . . . . Level 3 . | . . . . Level 4 . | . . . . Level 5 . | . . . . High Security . | . . . . Max Security . | . . . . Peak Influence 267 | 5 267 99 . Initial 24 | . . 24 . Average 81 | . 119 40 . Influence Increases 839 | 10 512 317 . Destroy 0b10 Robot/C 500 | . 280 220 . Destroy 0b10 Robot/NC 70 | 10 60 . . Destroy Leader 96 | . 56 40 . Allied During Kill 27 | . . 27 . Disable Machine 60 | . 45 15 . Destroy Structure 71 | . 71 . . Lose Combat Pursuer 15 | . . 15 . Influence Decreases 839 | 10 450 352 27 Entered New Map 53 | . . 38 15 Time Decay 771 | 10 450 299 12 Lost Ally 15 | . . 15 . Squads Dispatched 1 | . 1 . . Investigation . | . . . . Extermination . | . . . . Reinforcement 1 | . 1 . . Assault . | . . . . Garrison . | . . . . Intercept . | . . . . Searches Triggered . | . . . . Construction Impeded . | . . . . Haulers Reinforced . | . . . . Active Scanning Responses . | . . . . Cargo Convoy Interrupts . | . . . . Stealth | -11 -10 -10 -10 --------- Run | Yrd Mat Min Sub Distress Signals 2 | . 2 . . Communications Jammed . | . . . . Distress Signals . | . . . . Times Spotted 44 | . 25 9 10 Peak Tracking Total 6 | . 5 3 6 Tactical Retreats 1 | . . 1 . Traps | -11 -10 -10 -10 ------- Run | Yrd Mat Min Sub Traps Triggered . | . . . . Indirectly . | . . . . Trap Hack Attempts . | . . . . Triggered . | . . . . Disarmed . | . . . . Reprogrammed . | . . . . Reused . | . . . . Traps Extracted . | . . . . Installed . | . . . . Triggered . | . . . . Machines | -11 -10 -10 -10 ---------- Run | Yrd Mat Min Sub Machines Disabled 4 | . 3 1 . Max in Single Turn 1 | . 1 . . Machines Repaired . | . . . . Machines Dismantled . | . . . . Machines Sabotaged . | . . . . Overloaded Fab Kills . | . . . . Hacking | -11 -10 -10 -10 --------- Run | Yrd Mat Min Sub Machines Accessed 4 | . 4 . . Terminals 3 | . 3 . . Fabricators . | . . . . Repair Stations 1 | . 1 . . Recycling Units . | . . . . Scanalyzers . | . . . . Garrison Access . | . . . . Total Hacks 9 | . 9 . . Successful 6 | . 6 . . Failed 3 | . 3 . . Catastrophic 1 | . 1 . . Database Lockouts . | . . . . Manual 4 | . 4 . . Terminals 7 | . 7 . . Fabricators . | . . . . Repair Stations 2 | . 2 . . Recycling Units . | . . . . Scanalyzers . | . . . . Garrison Access . | . . . . Terminal Hacks 4 | . 4 . . Record 1 | . 1 . . Branch Access Points 1 | . 1 . . Dispatch Records 1 | . 1 . . Hauler Manifests 1 | . 1 . . Fabricator Hacks . | . . . . Repair Station Hacks 2 | . 2 . . Scan Component 1 | . 1 . . Repair 1 | . 1 . . Recycling Unit Hacks . | . . . . Scanalyzer . | . . . . Garrison Access Hacks . | . . . . Unauthorized Hacks . | . . . . Terminals . | . . . . Fabricators . | . . . . Repair Stations . | . . . . Recycling Units . | . . . . Scanalyzers . | . . . . Garrison Access . | . . . . Data Cores Recovered . | . . . . Used . | . . . . Hacking Detections 2 | . 2 . . Full Trace Events 1 | . 1 . . Feedback Events . | . . . . Feedback Blocked . | . . . . Robot Schematics Acquired . | . . . . Robots Built . | . . . . Authchips . | . . . . Time . | . . . . Total Robot Build Rating . | . . . . Part Schematics Acquired . | . . . . Parts Built . | . . . . Authchips . | . . . . Time . | . . . . Total Part Build Rating . | . . . . Part Studies Acquired . | . . . . Parts Repaired . | . . . . Time 26 | . 26 . . Parts Recycled . | . . . . Recycled Matter . | . . . . Retrieved Matter . | . . . . Retrieved Components . | . . . . Parts Scanalyzed . | . . . . Part Schematics Acquired . | . . . . Parts Damaged . | . . . . Bothacking | -11 -10 -10 -10 ------------ Run | Yrd Mat Min Sub Used RIF Installer . | . . . . Robots Hacked . | . . . . Non-combat . | . . . . Combat . | . . . . Robot Hacks Applied . | . . . . Relay Couplers Released . | . . . . Fabnet Peak Effective % . | . . . . Robots Rewired . | . . . . Allies Hacked . | . . . . Hacks Repelled . | . . . . Allies | -11 -10 -10 -10 -------- Run | Yrd Mat Min Sub Total Allies 3 | . . 3 . Largest Group 3 | . . 3 . Highest-Rated Group 74 | . . 74 . Highest-Rated Ally 31 | . . 31 . Total Orders . | . . . . Ally Attacks 12 | . . 12 . Total Damage 192 | . . 192 . Kills 4 | . . 4 . Allies Corrupted . | . . . . Allies Melted . | . . . . Intel | -11 -10 -10 -10 ------- Run | Yrd Mat Min Sub Active Infowar (turns) 2126 | . 1137 889 100 Optics 584 | . 584 . . Sensors 1542 | . 553 889 100 Robot Analysis Total . | . . . . Derelict Logs Recovered 2 | . . 2 . Drone Launches . | . . . . Drone Recoveries . | . . . . Exploration | -11 -10 -10 -10 ------------- Run | Yrd Mat Min Sub Turns Passed 2582 | 204 1389 889 100 Spaces Moved 1632 | 140 832 602 58 Core 86 | 85 . . 1 Treads . | . . . . Legs 1546 | 55 832 602 57 Wheels . | . . . . Hover . | . . . . Flight . | . . . . Fastest Speed 50 | 50 120 120 120 Average Speed 116 | 77 120 120 125 Slowest Speed 300 | 120 120 120 300 Overloaded Moves . | . . . . Propulsion Burnouts . | . . . . Robots Hopped . | . . . . Potential Cave-ins . | . . . . Cave-ins Triggered . | . . . . Exploration Rate (%) 49 | 5 90 93 8 Regions Visited 3 Branch Regions 2 Pre-discovered Areas . | . . . . Known Exits Taken 1 | . 1 . . Unknown Exits Taken 2 | 1 . 1 . Scrap Searched 2 | . . 2 . Spaces Dug . | . . . . Terrain Destroyed 79 | . 79 . . Melee . | . . . . Projectile . | . . . . AOE 79 | . 79 . . Terrain Rammed . | . . . . Walls Destroyed . | . . . . Machines Disabled . | . . . . Actions | -11 -10 -10 -10 --------- Run | Yrd Mat Min Sub Total 2121 | 230 1098 716 77 Wait 307 | 76 145 73 13 Move 1629 | 139 831 601 58 Hop . | . . . . Pick Up 32 | 6 24 2 . Fast Attach . | . . . . Attach 8 | 6 2 . . Detach 1 | . 1 . . Swap 19 | . 15 4 . Drop 17 | . 13 4 . Fire 108 | 3 67 32 6 Melee . | . . . . Ram . | . . . . Kick . | . . . . Crush . | . . . . Escape Stasis . | . . . . Rewire . | . . . . Trap . | . . . . Miscellaneous . | . . . . Route ------- -11/Scrapyard -10/Materials (discovered 4 exits: [*Mat x3] / *Min) -10/Mines (discovered 3 exits: [*Mat x2] / [*Sub]) -10/Subcaves History --------- Turn | Location | Event 6 | -11/Scrapyard | Discovered new exit (range 16) 205 | -11/Scrapyard | Entered Materials 245 | -10/Materials | Discovered new exit (range 9) 301 | -10/Materials | Build established: Mutant 331 | -10/Materials | Discovered new exit (range 5) 378 | -10/Materials | Core integrity fell below 50% 727 | -10/Materials | Discovered new exit (range 10) 1058 | -10/Materials | Discovered new exit (range 16) 1516 | -10/Materials | Identified exit to Mines 1594 | -10/Materials | Entered Mines 1662 | -10/Mines | Escorted by a lone wolf Derelict 1805 | -10/Mines | Discovered new exit (range 13) 1859 | -10/Mines | Learned Materials interactive machine intel 1866 | -10/Mines | Found a damaged Exp. Sensor Array with a note attached 2015 | -10/Mines | Learned location of 1 exit from Materials 2060 | -10/Mines | Discovered new exit (range 9) 2245 | -10/Mines | Build established: Scavenger-Mutant 2475 | -10/Mines | Discovered new exit (range 6) 2483 | -10/Mines | Entered Subcaves 2555 | -10/Subcaves | Ambushed by swarm of Subdwellers 2560 | -10/Subcaves | Ambushed by Subdwellers from Twisted Machinery 2563 | -10/Subcaves | Core integrity fell below 20% 2583 | -10/Subcaves | Destroyed by 9X-5R4(R) with Subdweller Laser Last Messages --------------- Q9-018(R) emerges from the Twisted Machinery. HE-1RV(R) emerges from the Twisted Machinery. HV Slug penetrates HE-1RV(R). HI-FKD(R) emerges from the Twisted Machinery. EF-PXJ(g): "Sorry we're late! Had another grouchy Sub to deal with. Who's the new fellow?" OS-1O0(R) emerges from the Twisted Machinery. 6C-DAN(g) destroyed. 4K-BV6(R) angrily emerges from the Twisted Machinery. HV Slug penetrates HE-1RV(R). HE-1RV(R) knocked back. HV Slug penetrates HE-1RV(R). HE-1RV(R) destroyed. 9X-5R4(R) emerges from the Twisted Machinery. Aluminum Leg destroyed. HI-FKD(R) suffers critical hit (Destroy). HI-FKD(R) knocked back. Aluminum Leg destroyed. Map ----- +----------------------------------------------------+ | | | | | | | | | | | ?????????????????????????????????????????????????? | | ?????????????????????????????????????????????????? | | ?????????????????????????????????????????????????? | | ?????????????????????????????????????????????????? | | ?????????????????????????????????????????????????? | | ?????????????????????????????????????????????????? | | ?????????????????????????????????????????????????? | | ?????????????????????????????????????????????????? | | ?????????????????????????????????????????????????? | | ?????????????????????????????????????????????????? | | ?????????????????????????????????????????????????? | | ?????????????????????????????????????????????????? | | ?????????????????????????????????????????????????? | | ?????????????????????????????????????????????????? | | ?????????????????????????????????????????????????? | | ??????????????????#####??????##??????????????????? | | ??????????????????# ####### ##???#?? ??????????? | | ??????????????????# # # ### ??????????? | | ?????????????????## R ??????????? | | ????????????????## R #?????????????? | | ????????????????# ?# @# #?????????????????? | | ???????????###??# ##### ##?????????????????? | | ??????????## ?## ?###?? #?????????????????? | | ??????????# ## ### #??????????????????? | | ???????????# ?] ##?????????????????? | | ???????????# &%! #?????????????????? | | ???????????# ! & ###?????????????????? | | ???????????# [|" ? " ??????????????????? | | ??????????# !%""""=* ###?????????????????? | | ?????????# *### "%[ #???????????????????? | | ?????????## %##?? " % ##??????????????????? | | ??????????# ##???#"% #??????????????????? | | ??????????## ####### ##?????????????????? | | ???????????## ### # % ## ???????????????? | | ????????????###?# #?????????????? | | ????????????????## #????????????? | | ?????????????????# " ## #????????????? | | ????????????????## "# # #????????????? | | ????????????????# ### ## ####????????????? | | ????????????????# ### ### #???????????????? | | ?????????????#### # #?# #???????????????? | | ???????????### ##??# #???????????????? | | ???????????# # ###???? #???????????????? | | ???????????## ########?? ##???????????????? | | ????????????## ### #????????????????????? | +----------------------------------------------------+ Best States ------------- Heat Dissipation 25 Energy Generation 14 Energy Capacity 250 Matter Stores 300 Matter Capacity 300 Sight Range 18 Robot Scan Range 14 Terrain Scan Density 10 Evasion (%) 55 Item Schematics ----------------- None Robot Schematics ------------------ None Fabricated ------------ Nothing Repaired ---------- Nothing Studied --------- None Alien Tech Used ----------------- None Achievements -------------- Hey, That's Mine! Challenges ------------ None Game ------ Seed HypervelocitySensorMount Manual? 0 Play Time 00:25:40 Cumulative 4.8 hours Start 2026.06.29 @ 22:50:12 End 2026.06.30 @ 15:28:26 Sessions 2 Manual Loads 0 Difficulty Rogue Special Mode None Game No. 6 Rogue 3 Adventurer 0 Explorer 3 Win Type - Total 0 Types 0/0/0/0/0/0/0/0/0/0 Lore% 2 Gallery% 7 Achievement% 10 Wizard Run 0 Options --------- Layout 1 ASCII 0 Keyboard 0 Movement Mouse Keybinds 0 Fullscreen 1 Font 24/Smallcaps Map View 50x35 Zoom Use 0% Tactical HUD 0 Map Filters NONE Filters NONE Steam 1 RUN: 05bbe046-336a-4f5b-9e62-00b02d84c407